bitfinex/quotes_ETHUSD_20220103
["timestamp","ask_amount","ask_price","bid_price","bid_amount"]
[1641221112537,0.01943533,3840.2,3840.1,7.77528068]
[1641221112737,0.01943533,3840.2,3840.1,6.53430524]
[1641221113372,0.01943533,3840.2,3840.1,6.83430524]
[1641221114174,0.01943533,3840.2,3840.1,9.83374142]
[1641221114371,0.01943533,3840.2,3840.1,6.83430524]
[1641221114572,3.533e-05,3840.2,3840.1,19.18824802]
[1641221114777,10.0,3841.0,3840.2,9.35]
[1641221114974,10.0,3841.0,3840.7,0.65071]
[1641221115181,0.00397897,3840.9,3840.8,8.18417438]
[1641221115374,0.00397897,3840.9,3840.8,5.52025262]
[1641221115674,0.00397897,3840.9,3840.8,6.52025262]
[1641221116928,0.00397897,3840.9,3840.8,7.47095262]
[1641221117127,0.00397897,3840.9,3840.8,7.17095262]
[1641221117728,2.71231222,3840.9,3840.8,5.22025262]
[1641221118121,7.36231222,3840.9,3840.8,5.22025262]
[1641221118322,7.67528424,3840.9,3840.8,5.22025262]
[1641221118521,23.98528424,3840.9,3840.8,5.22025262]
[1641221118722,24.36028424,3840.9,3840.8,5.22025262]
[1641221118924,24.36028424,3840.9,3840.8,0.44525262]
[1641221119125,24.45948424,3840.9,3840.5,0.05968886]
[1641221119322,24.45948424,3840.9,3838.2,1.30147544]
[1641221119323,15.32217436,3840.6,3838.4,3.7994]
[1641221119524,15.32289112,3839.7,3838.2,1.24097544]
[1641221119722,15.32289112,3839.7,3838.1,0.01]
[1641221119723,3.56083071,3839.6,3838.5,0.0096632]
[1641221119921,3.56083071,3839.6,3838.3,0.01080004]
[1641221120123,4.3068056,3839.6,3838.2,0.01136847]
[1641221120331,1.38965211,3838.6,3838.2,0.01136847]
[1641221121191,1.38965211,3838.6,3838.4,0.65126]
[1641221121594,1.38965211,3838.6,3838.5,0.0096632]
[1641221122395,1.38965211,3838.6,3838.2,0.01136847]
[1641221123005,1.38965211,3838.6,3838.2,0.01216847]
[1641221123396,1.38965211,3838.6,3838.3,0.01080004]
[1641221123997,1.38965211,3838.6,3838.3,0.66209004]
[1641221124198,1.38965211,3838.6,3838.3,0.01080004]
[1641221124428,1.38965211,3838.6,3838.4,0.01023162]
[1641221124630,1.38965211,3838.6,3838.3,0.01080004]
[1641221124835,1.38965211,3838.6,3838.1,0.33218983]
[1641221125031,1.38965211,3838.6,3838.1,1.33218983]
[1641221125231,0.00113684,3838.5,3838.1,1.33218983]
[1641221125534,0.00113684,3838.5,3838.3,0.01305262]
[1641221127637,0.00113684,3838.5,3838.3,1.31305262]
[1641221128087,0.00113684,3838.5,3838.3,0.31305262]
[1641221128284,0.00113684,3838.5,3838.3,0.01305262]
[1641221129083,0.00113684,3838.5,3838.3,0.66434262]
[1641221129585,2.69930098,3838.5,3838.4,0.00088188]
[1641221130087,2.70060257,3838.5,3838.4,0.00088188]
[1641221130286,2.68902023,3838.5,3838.4,0.00088188]
[1641221130487,0.00466491,3838.5,3838.4,0.00088188]
[1641221130886,2.67384899,3838.5,3838.4,0.0139345]
[1641221131088,2.7392541,3838.5,3838.4,0.0139345]
[1641221131689,2.72639174,3838.5,3838.4,0.0139345]
[1641221131948,9.74849109,3838.5,3838.4,0.0139345]
[1641221132151,11.22629109,3838.5,3838.4,0.0139345]
[1641221132348,27.8122403,3838.5,3838.4,0.0139345]
[1641221132549,28.1872403,3838.5,3838.4,3.45e-05]
[1641221132848,28.1872403,3838.5,3838.1,0.06978979]
[1641221132849,9.35,3838.4,3838.1,0.06978979]
[1641221133047,28.1872403,3838.5,3838.1,0.06978979]
[1641221133048,10.01377046,3838.2,3838.1,0.06978979]
[1641221133253,10.01377046,3838.2,3838.1,0.01]
[1641221133254,1.03877046,3838.2,3838.1,0.01]
[1641221134049,6.38877046,3838.2,3838.1,0.01]
[1641221134250,25.25284635,3838.2,3838.1,0.01]
[1641221134550,4.59284635,3838.2,3838.1,0.01]
[1641221135687,4.29284635,3838.2,3838.1,0.01]
[1641221135891,0.375,3838.2,3838.1,0.01]
[1641221136492,3.25938851,3838.2,3838.1,0.01]
[1641221136692,0.375,3838.2,3838.1,0.01]
[1641221137492,0.3766,3838.2,3838.1,0.01]
[1641221140547,0.0016,3838.2,3838.1,0.01]
[1641221144888,0.0016,3838.2,3837.5,6.47]
[1641221145287,0.0016,3838.2,3837.6,0.00511581]
[1641221146488,0.65155,3838.0,3837.6,0.00511581]
[1641221148133,0.65155,3838.0,3837.0,6.21]
[1641221148134,0.65155,3838.0,3837.1,0.00795792]
[1641221149040,1.33520325,3837.4,3837.1,0.00795792]
[1641221150442,0.02881389,3837.3,3837.1,1.31096792]
[1641221150684,0.02881389,3837.3,3837.2,1.73420838]
[1641221150885,1.33520325,3837.4,3837.2,1.74159788]
[1641221151291,1.33520325,3837.4,3837.3,0.00682108]
[1641221153093,6.4,3837.9,3837.2,1.69102946]
[1641221153293,2.80182912,3838.0,3837.2,1.69102946]
[1641221153294,2.73242014,3838.0,3837.2,1.69102946]
[1641221153494,0.00397897,3838.0,3837.2,1.69102946]
[1641221153692,2.71389001,3838.0,3837.2,1.69102946]
[1641221153893,2.74210028,3838.0,3837.2,1.69102946]
[1641221154095,2.72297946,3838.0,3837.2,1.69102946]
[1641221154343,1.32100889,3837.6,3837.2,1.69102946]
[1641221154738,0.00113685,3837.5,3837.2,1.69102946]
[1641221154943,0.00113685,3837.5,3837.2,2.34250946]
[1641221156143,0.00113685,3837.5,3837.2,1.69102946]
[1641221157447,0.65274685,3837.5,3837.2,1.69102946]
[1641221157646,2.73607933,3837.4,3837.2,1.69102946]
[1641221157847,0.65274685,3837.5,3837.2,1.69102946]
[1641221158113,1.38602105,3837.3,3837.2,1.69102946]
[1641221158298,2.01122105,3837.3,3837.2,1.69102946]
[1641221158698,6.06122105,3837.3,3837.2,1.69102946]
[1641221158898,2.01122105,3837.3,3837.2,1.69102946]
[1641221159803,7.01122105,3837.3,3837.2,1.69102946]
[1641221160001,9.94498874,3837.3,3837.2,1.69102946]
[1641221160200,12.97778879,3837.3,3837.2,1.69102946]
[1641221160601,10.0440211,3837.3,3837.2,1.69102946]
[1641221161005,10.0440211,3837.3,3836.0,6.21]
[1641221161006,0.34997054,3837.2,3836.0,6.21]
[1641221161204,0.01237202,3836.4,3836.0,6.21]
[1641221161404,1.03924582,3836.4,3836.1,0.00682108]
[1641221161607,1.33924582,3836.4,3836.1,0.00682108]
[1641221161836,1.03924582,3836.4,3836.1,0.00682108]
[1641221162439,15.31,3836.2,3836.1,0.00682108]
[1641221162640,15.31,3836.2,3834.6,1.89300544]
[1641221162641,9.35,3836.1,3834.6,1.89300544]
[1641221162843,0.6520396,3835.5,3834.6,1.89300544]
[1641221163045,15.31,3835.3,3834.7,0.00795793]
[1641221163343,1.38128295,3835.1,3834.7,0.00795793]
[1641221163545,18.64503086,3835.0,3834.7,0.00795793]
[1641221163746,18.64503086,3835.0,3834.2,0.39001758]
[1641221163747,19.04583086,3835.0,3834.3,0.01023162]
[1641221163945,0.6522586,3834.7,3834.3,0.01023162]
[1641221164143,15.31,3834.5,3834.3,0.01023162]
[1641221164343,9.425,3834.4,3834.3,0.01023162]
[1641221164543,14.35933086,3834.4,3834.1,0.01136847]
[1641221164747,10.00228,3834.2,3834.0,1.10234391]
[1641221164946,0.375,3834.1,3833.3,1.10234391]
[1641221165146,0.65231,3833.7,3833.3,1.10234391]
[1641221165347,0.65231,3833.7,3833.4,0.00397896]
[1641221165587,0.95231,3833.7,3833.4,0.00397896]
[1641221165792,0.4734,3833.6,3833.4,0.00397896]
[1641221165989,26.297595,3833.5,3833.4,0.00397896]
[1641221166189,11.362595,3833.5,3833.1,0.00568423]
[1641221166390,0.6524,3833.3,3833.1,0.00568423]
[1641221166595,6.325,3833.2,3833.1,0.00568423]
[1641221166795,0.375,3833.2,3833.1,0.00568423]
[1641221167894,3.1780603,3833.2,3832.2,0.01080004]
[1641221168097,3.1780603,3833.2,3832.1,1.30472]
[1641221168098,7.95,3833.1,3832.1,1.26552004]
[1641221168298,0.3,3833.3,3832.2,0.3]
[1641221168500,0.00454738,3833.0,3832.2,0.3]
[1641221168696,0.00568423,3833.2,3832.2,0.3]
[1641221168897,0.00397896,3832.9,3832.2,1.96942505]
[1641221169096,0.00511581,3833.1,3832.2,1.96942505]
[1641221169363,0.00341054,3832.8,3832.2,2.26942505]
[1641221169556,0.00454738,3833.0,3832.2,2.26942505]
[1641221169855,0.00397896,3832.9,3832.2,0.3]
[1641221170061,0.00397896,3832.9,3831.9,2.26942505]
[1641221170256,0.33542789,3833.3,3831.9,2.26942505]
[1641221170257,0.00341054,3832.8,3831.9,2.26942505]
[1641221170458,0.00341054,3832.8,3832.3,1.96942505]
[1641221170657,1.02435513,3832.7,3832.3,1.96942505]
[1641221170855,1.02435513,3832.7,3832.3,2.26942505]
[1641221171057,0.00227369,3832.6,3832.3,0.3]
[1641221171456,1.05929025,3832.7,3832.1,0.65239]
[1641221171457,0.00170527,3832.5,3832.1,0.65239]
[1641221171658,0.00170527,3832.5,3832.0,2.2705619]
[1641221171859,0.00113684,3832.4,3832.0,1.9705619]
[1641221172057,0.00113684,3832.4,3832.3,0.00135711]
[1641221172259,2.91755216,3832.4,3832.3,0.00135711]
[1641221172458,0.30113684,3832.4,3832.3,0.00135711]
[1641221172662,2.94060381,3832.4,3832.3,0.00135711]
[1641221172860,0.30113684,3832.4,3832.3,0.00135711]
[1641221173094,3.03046913,3832.4,3832.3,0.00135711]
[1641221173299,2.73046913,3832.4,3832.3,0.00135711]
[1641221173701,18.14046913,3832.4,3832.3,0.00135711]
[1641221173903,18.14926913,3832.4,3832.3,0.00135711]
[1641221174103,18.14526913,3832.4,3832.3,0.00135711]
[1641221174301,18.14446913,3832.4,3832.3,0.00135711]
[1641221174503,18.52186913,3832.4,3832.3,0.00135711]
[1641221174705,19.52106913,3832.4,3832.3,0.00135711]
[1641221174908,4.21106913,3832.4,3832.3,0.00135711]
[1641221175103,4.10546913,3832.4,3832.3,0.00135711]
[1641221175312,19.52506913,3832.4,3832.3,0.00135711]
[1641221175506,20.79002478,3832.4,3832.3,0.00135711]
[1641221175706,18.06629249,3832.4,3832.3,0.00135711]
[1641221175905,18.06629249,3832.4,3832.0,1.88012823]
[1641221175906,18.08149249,3832.4,3832.0,1.88012823]
[1641221176105,9.35,3832.2,3831.9,0.05979919]
[1641221176305,1.32775,3832.1,3831.9,0.05979919]
[1641221176506,1.32775,3832.1,3831.4,1.27171089]
[1641221176507,9.35,3831.9,3831.4,1.27171089]
[1641221176706,24.67217368,3831.5,3830.7,0.53477452]
[1641221176948,9.36221887,3830.8,3830.7,0.53477452]
[1641221177147,9.36221887,3830.8,3830.7,0.48477452]
[1641221177148,10.73721887,3830.8,3830.7,0.48477452]
[1641221177449,9.35,3830.7,3830.6,0.27526042]
[1641221177651,15.31,3830.5,3830.1,7.21]
[1641221177856,0.375,3830.4,3830.1,7.21]
[1641221178051,15.31,3830.3,3830.2,0.00284211]
[1641221178350,1.14961,3830.3,3830.2,0.00284211]
[1641221178551,0.675,3830.3,3830.2,0.00284211]
[1641221178753,0.375,3830.3,3830.2,0.00284211]
[1641221179151,0.375,3830.3,3829.2,0.00852635]
[1641221179351,0.375,3830.3,3829.3,1.30569]
[1641221179352,3.14,3830.1,3829.3,1.30569]
[1641221179552,0.03829374,3830.1,3828.7,0.27639994]
[1641221179752,0.03829374,3830.1,3828.8,0.00170527]
[1641221179753,1.11631581,3830.0,3828.8,0.00170527]
[1641221180054,0.00511581,3830.0,3828.8,0.00170527]
[1641221180252,1.29250846,3829.3,3828.8,0.00170527]
[1641221180462,1.29250846,3829.3,3828.9,1.30583]
[1641221180892,1.29250846,3829.3,3829.0,0.3]
[1641221182188,1.29250846,3829.3,3828.8,0.00170527]
[1641221182391,0.0992,3829.2,3828.8,0.00170527]
[1641221182592,0.1064,3829.2,3827.8,1.30608]
[1641221182790,0.1064,3829.2,3827.8,1.25949054]
[1641221182791,0.1088,3829.2,3827.8,1.25949054]
[1641221182996,0.00341054,3829.1,3827.9,0.00341054]
[1641221183192,0.10821054,3829.1,3827.9,0.00341054]
[1641221183391,1.42299957,3828.1,3827.9,0.00341054]
[1641221184634,0.1794,3828.2,3827.9,0.00341054]
[1641221184831,1.20466474,3828.1,3827.9,0.00341054]
[1641221185030,1.20466474,3828.1,3827.9,0.30341054]
[1641221185435,1.20466474,3828.1,3828.0,4.80284212]
[1641221185638,0.00170527,3828.8,3828.0,0.00284212]
[1641221185836,0.00170527,3828.8,3828.1,0.65305]
[1641221186035,0.01025974,3829.1,3828.1,0.65305]
[1641221186036,0.00113684,3828.7,3828.1,0.65305]
[1641221186235,0.00113684,3828.7,3828.2,0.00170527]
[1641221186434,0.00284211,3829.0,3828.2,0.00170527]
[1641221186836,1.37334171,3828.9,3828.2,0.00170527]
[1641221187033,1.37334171,3828.9,3827.9,0.3]
[1641221187034,1.37334171,3828.9,3828.0,0.00284212]
[1641221187237,2.93613629,3828.8,3828.0,0.00284212]
[1641221187440,1.26007424,3828.1,3828.0,0.00284212]
[1641221188085,0.0016,3828.1,3828.0,0.00284212]
[1641221189392,1.25377117,3828.1,3828.0,0.00284212]
[1641221190196,1.25377117,3828.1,3827.8,0.00397897]
[1641221192259,1.25377117,3828.1,3827.4,0.65944266]
[1641221192465,1.25377117,3828.1,3827.5,0.00568424]
[1641221193764,1.25377117,3828.1,3827.6,0.0017347]
[1641221194165,1.25377117,3828.1,3827.7,0.00454739]
[1641221195466,0.01186094,3828.1,3827.7,0.00454739]
[1641221195695,0.01186094,3828.1,3827.7,0.65767739]
[1641221196098,0.01186094,3828.1,3827.8,0.00397897]
[1641221197100,0.01186094,3828.1,3827.9,1.45890195]
[1641221197499,0.01186094,3828.1,3828.0,6.90284212]
[1641221197700,0.01186094,3828.1,3828.0,0.00284212]
[1641221198301,0.01186094,3828.1,3828.0,3.25284212]
[1641221198502,0.01186094,3828.1,3828.0,0.00284212]
[1641221198901,0.01186094,3828.1,3827.8,0.00397897]
[1641221201373,0.11036315,3828.2,3827.8,0.00397897]
[1641221201374,0.00012409,3828.2,3827.9,9.35]
[1641221201556,0.00012409,3828.2,3828.0,1.0]
[1641221201754,3.01094108,3829.9,3828.2,9.35]
[1641221202155,1.34317556,3829.4,3828.3,1.00227369]
[1641221202354,1.34317556,3829.4,3828.3,1.30227369]
[1641221202655,0.00341055,3829.3,3828.4,0.00170527]
[1641221203095,0.00284212,3829.2,3828.8,1.30564]
[1641221203496,0.0022737,3829.1,3828.4,0.65472527]
[1641221203694,1.20612136,3828.6,3828.4,0.65472527]
[1641221203900,1.20612136,3828.6,3828.5,0.00113684]
[1641221204296,1.20612136,3828.6,3828.5,0.00275785]
[1641221208841,2.15925136,3828.6,3828.5,0.00275785]
[1641221209443,1.20612136,3828.6,3828.5,0.00275785]
[1641221209644,4.34423472,3828.6,3828.5,0.00275785]
[1641221209842,1.76032136,3828.6,3828.5,0.00275785]
[1641221210045,7.26347136,3828.6,3828.5,0.00275785]
[1641221210245,7.36507136,3828.6,3828.5,0.00275785]
[1641221210446,7.36747136,3828.6,3828.5,0.00275785]
[1641221210688,1.55952136,3828.6,3828.5,0.00275785]
[1641221210989,1.20612136,3828.6,3828.5,0.00275785]
[1641221211589,1.50612136,3828.6,3828.5,0.00275785]
[1641221211787,2.15924136,3828.6,3828.5,0.00275785]
[1641221212385,1.20612136,3828.6,3828.5,0.00275785]
[1641221213990,1.20965942,3828.6,3828.5,0.00275785]
[1641221214441,1.2037431,3828.6,3828.5,0.00275785]
[1641221214641,1.5037431,3828.6,3828.5,0.00275785]
[1641221214844,1.2037431,3828.6,3828.5,0.00275785]
[1641221217043,3.8037431,3828.6,3828.5,0.00275785]
[1641221217247,4.1037431,3828.6,3828.5,0.00275785]
[1641221217447,1.5037431,3828.6,3828.5,0.00275785]
[1641221217646,1.3021431,3828.6,3828.5,0.00275785]
[1641221217846,1.2037431,3828.6,3828.5,0.00275785]
[1641221218708,1.2037431,3828.6,3826.4,1.2029376]
[1641221218709,24.66,3828.4,3826.4,1.2029376]
[1641221218913,0.01227253,3826.8,3825.5,2.77772513]
[1641221219108,0.01294227,3825.7,3825.5,2.77772513]
[1641221219411,0.65,3825.7,3825.5,2.77772513]
[1641221219705,0.65,3825.7,3825.4,4.08657553]
[1641221220109,0.65,3825.7,3825.5,0.01705271]
[1641221220304,0.6288,3825.8,3825.5,0.01705271]
[1641221220305,0.2338,3825.8,3825.5,0.01705271]
[1641221220508,0.06061679,3826.6,3825.5,0.01705271]
[1641221220905,0.06061679,3826.6,3825.7,1.32887925]
[1641221221106,0.06061679,3826.6,3825.7,1.62887925]
[1641221221308,0.65344,3826.6,3825.8,0.01534744]
[1641221221508,3.42246355,3826.5,3825.8,0.01534744]
[1641221221888,0.69310972,3826.5,3825.8,0.65348]
[1641221222086,0.69310972,3826.5,3825.6,0.31648428]
[1641221222282,0.69310972,3826.5,3825.9,0.01477901]
[1641221222482,0.69310972,3826.5,3825.7,0.01591586]
[1641221222483,1.69962343,3826.4,3825.7,0.01591586]
[1641221222983,1.70509135,3826.1,3825.7,0.01591586]
[1641221223183,4.61409005,3826.1,3825.8,1.22544195]
[1641221223383,0.375,3826.0,3825.8,1.22544195]
[1641221223584,9.7089987,3825.9,3825.8,1.22544195]
[1641221223782,7.175,3825.9,3825.8,1.22544195]
[1641221223983,7.475,3825.9,3825.8,1.24078939]
[1641221224383,7.475,3825.9,3825.8,0.01534744]
[1641221224787,0.6537041,3825.4,3824.8,0.02103167]
[1641221224985,0.33625318,3825.1,3824.8,0.02103167]
[1641221225187,0.375,3825.0,3824.8,0.02103167]
[1641221225598,5.0,3826.1,3824.9,9.35168181]
[1641221225900,1.69984297,3825.9,3825.0,0.01989482]
[1641221226097,0.65359,3825.8,3825.1,0.6536]
[1641221226501,0.65359,3825.8,3825.2,0.01875798]
[1641221226702,1.18503424,3825.6,3825.2,0.01875798]
[1641221227109,0.0125576,3825.4,3825.2,0.01875798]
[1641221227299,0.3875576,3825.4,3825.2,0.01875798]
[1641221227500,0.6875576,3825.4,3825.2,0.01875798]
[1641221227700,0.6875576,3825.4,3825.3,1.22544195]
[1641221227905,1.69984297,3825.7,3824.3,2.60859773]
[1641221228101,11.30726,3826.1,3824.8,1.30724]
[1641221228102,0.00113685,3825.4,3824.8,1.30724]
[1641221228304,0.0022737,3825.6,3824.9,0.0606171]
[1641221228506,0.0606171,3825.7,3825.1,0.65366]
[1641221228703,0.00170527,3825.5,3825.1,0.65366]
[1641221228903,0.0022737,3825.6,3825.1,0.65366]
[1641221229103,1.33958646,3825.4,3825.1,1.95601632]
[1641221229348,1.33844961,3825.4,3825.1,1.95601632]
[1641221229550,1.33844961,3825.4,3825.1,2.25601632]
[1641221229750,1.63844961,3825.4,3825.1,1.30235632]
[1641221230347,1.63844961,3825.4,3825.0,0.00113684]
[1641221230748,0.6536947,3825.3,3825.0,0.00113684]
[1641221230947,0.69081982,3825.3,3825.0,0.00113684]
[1641221231152,0.69081982,3825.3,3825.0,0.65473684]
[1641221231153,0.03712512,3825.3,3825.0,0.65473684]
[1641221231353,0.3,3825.4,3825.0,0.65473684]
[1641221231554,0.0022737,3825.6,3825.0,0.65473684]
[1641221231555,2.61273279,3825.3,3825.0,0.65473684]
[1641221231758,0.3022737,3825.6,3825.0,0.00113684]
[1641221231953,0.65373,3825.1,3825.0,0.00113684]
[1641221232152,0.0102687,3825.2,3825.0,0.00113684]
[1641221232359,0.0102687,3825.2,3825.0,0.65474684]
[1641221232552,0.0102687,3825.2,3825.1,9.3]
[1641221232952,0.0102687,3825.2,3825.1,9.6]
[1641221233594,0.0102687,3825.2,3825.1,10.708408]
[1641221233796,0.0102687,3825.2,3825.1,10.658408]
[1641221234093,0.00170527,3825.5,3825.3,0.65346]
[1641221234494,0.0606171,3825.7,3825.3,1.65346]
[1641221234793,0.00113685,3825.6,3825.3,0.65346]
[1641221234999,1.2162526,3825.4,3825.3,0.65346]
[1641221235395,0.00113685,3825.6,3825.3,0.65346]
[1641221235995,0.05516108,3825.7,3825.3,0.65346]
[1641221236200,0.05516108,3825.7,3825.4,0.00258617]
[1641221236397,1.31025588,3825.6,3825.4,0.00258617]
[1641221236695,1.61025588,3825.6,3825.4,0.00258617]
[1641221238270,4.20167187,3825.6,3825.4,0.00258617]
[1641221238471,4.625,3825.5,3825.4,0.00258617]
[1641221238871,4.425,3825.5,3824.9,1.31745866]
[1641221239172,4.425,3825.5,3825.0,0.6559737]
[1641221239173,2.02871,3825.5,3825.0,0.6559737]
[1641221239375,2.02871,3825.5,3825.0,0.0022737]
[1641221239570,2.02871,3825.5,3825.1,0.00170528]
[1641221239571,0.3,3825.4,3825.1,0.00170528]
[1641221239972,0.00434722,3825.5,3825.1,1.30889528]
[1641221240375,0.00434722,3825.5,3825.2,0.00113686]
[1641221241322,0.65800722,3825.5,3824.8,1.49602756]
[1641221241520,8.22478352,3824.9,3824.8,1.49602756]
[1641221241720,4.27478352,3824.9,3824.8,1.49602756]
[1641221241921,1.17478352,3824.9,3824.8,1.49602756]
[1641221242120,0.653871,3824.6,3824.0,3.47082092]
[1641221242419,0.65388,3824.3,3824.1,0.00625265]
[1641221242624,0.95388,3824.3,3824.1,0.00625265]
[1641221242830,0.95388,3824.3,3823.4,4.03657553]
[1641221242831,15.26,3824.1,3823.4,4.03657553]
[1641221243025,1.20670702,3824.0,3823.4,4.03657553]
[1641221243224,0.6540013,3823.8,3823.5,0.00341055]
[1641221243526,0.9540013,3823.8,3823.5,0.00341055]
[1641221243722,0.6540013,3823.8,3823.5,0.00341055]
[1641221243923,1.20670702,3824.0,3823.5,0.00341055]
[1641221244123,0.6539276,3823.8,3823.5,3.50192701]
[1641221244342,2.60262569,3823.7,3823.5,3.50192701]
[1641221244549,7.18869102,3823.6,3823.5,3.49851646]
[1641221244746,7.18869102,3823.6,3822.9,4.03657553]
[1641221244747,7.6,3823.5,3822.9,4.03657553]
[1641221244954,7.6,3823.5,3822.3,1.37170434]
[1641221244955,0.65415,3823.2,3822.3,1.37170434]
[1641221245248,0.0120131,3823.1,3822.4,0.0096632]
[1641221245452,1.26864199,3823.0,3822.4,0.0096632]
[1641221245648,0.6541574,3822.9,3822.4,0.0096632]
[1641221245850,0.68866713,3822.9,3822.4,0.0096632]
[1641221246551,0.95419,3822.7,3822.4,0.0096632]
[1641221246751,0.95419,3822.7,3822.5,0.00161314]
[1641221246752,0.98538799,3822.7,3822.5,0.00161314]
[1641221246953,3.10533905,3822.6,3822.5,0.00161314]
[1641221247154,0.68571319,3822.6,3822.5,0.00161314]
[1641221247355,0.98571319,3822.6,3822.5,0.00161314]
[1641221247959,2.14560656,3822.6,3822.5,0.00161314]
[1641221248204,3.84429867,3822.6,3822.5,0.00161314]
[1641221248605,6.3351369,3822.6,3822.5,0.00161314]
[1641221249106,3.47655142,3822.6,3822.5,0.00161314]
[1641221249305,4.65660573,3822.6,3822.5,0.00161314]
[1641221249506,4.75740573,3822.6,3822.5,0.00161314]
[1641221249705,20.07220573,3822.6,3822.5,0.00161314]
[1641221249910,20.07220573,3822.6,3819.7,6.81095921]
[1641221249911,8.55,3820.4,3819.7,6.81095921]
[1641221250114,0.01260258,3819.8,3819.1,6.20788337]
[1641221250514,0.01260258,3819.8,3817.5,17.81921291]
[1641221250515,0.375,3819.7,3818.9,2.26495895]
[1641221250714,0.0001,3819.7,3819.2,1.91890651]
[1641221251008,0.00449278,3820.2,3819.3,9.35]
[1641221251209,0.00449278,3820.2,3820.1,1.18591372]
[1641221251409,0.00449278,3820.2,3819.5,1.30873]
[1641221251610,0.00449278,3820.2,3820.1,0.01307374]
[1641221251874,0.00449278,3820.2,3819.6,0.01591586]
[1641221252276,2.97870056,3820.4,3819.6,0.01591586]
[1641221252277,2.97870056,3820.4,3820.0,1.30881]
[1641221252481,2.97870056,3820.4,3820.2,0.3]
[1641221252878,2.97870056,3820.4,3820.3,0.0119369]
[1641221253682,3.96508993,3820.5,3820.3,0.6663069]
[1641221253885,3.96508993,3820.5,3820.3,0.65437]
[1641221254083,3.96508993,3820.5,3820.4,4.96136847]
[1641221254283,0.06104152,3821.1,3820.4,0.01136847]
[1641221254487,0.06104152,3821.1,3820.9,1.10701658]
[1641221254688,0.06104152,3821.1,3820.5,1.3087]
[1641221254985,0.65187081,3821.0,3820.5,1.3087]
[1641221256196,0.00354523,3820.9,3820.5,1.3087]
[1641221256598,0.30354523,3820.9,3820.5,1.3087]
[1641221257001,0.00354523,3820.9,3820.5,1.3087]
[1641221257404,0.00354523,3820.9,3820.6,0.00165641]
[1641221257802,0.00354523,3820.9,3820.7,0.0096632]
[1641221258108,0.00354523,3820.9,3820.7,5.3640032]
[1641221258305,1.7781518,3821.3,3820.8,6.9]
[1641221258506,1.7781518,3821.3,3820.8,7.20909478]
[1641221258706,1.7781518,3821.3,3820.9,0.00852636]
[1641221259007,6.52097073,3821.9,3821.3,0.65423]
[1641221259008,1.7781518,3821.7,3821.3,0.65423]
[1641221259361,1.7781518,3821.7,3821.4,0.00568424]
[1641221259761,1.80836634,3821.9,3821.4,0.00568424]
[1641221259959,1.7781518,3821.9,3821.4,0.00568424]
[1641221260362,1.76333522,3821.9,3821.4,0.00568424]
[1641221260559,1.76333522,3821.9,3821.8,1.20886834]
[1641221260765,1.75980823,3821.9,3821.8,1.20886834]
[1641221260959,2.6672277,3822.2,3821.8,1.21227888]
[1641221261161,2.9349155,3822.3,3821.8,1.21227888]
[1641221261362,2.9349155,3822.3,3821.9,0.30284212]
[1641221261760,2.9349155,3822.3,3822.0,0.0022737]
[1641221262059,2.93490397,3822.5,3822.0,0.0022737]
[1641221262260,2.25633741,3822.6,3822.0,0.0022737]
[1641221262462,2.93488995,3822.8,3822.7,15.29429503]
[1641221262662,2.6672277,3823.0,3822.7,5.94429503]
[1641221262861,0.00170526,3822.9,3822.8,0.3]
[1641221263117,3.887e-05,3823.2,3823.0,0.65374]
[1641221263319,2.93485988,3824.4,3823.0,1.30744]
[1641221263516,2.93485988,3824.4,3823.1,9.7261]
[1641221263714,0.00682108,3824.3,3823.5,1.30732]
[1641221264113,2.79828377,3825.9,3823.6,0.3]
[1641221264114,4.4453795,3824.8,3823.6,0.3]
[1641221264315,4.4453795,3824.8,3824.0,0.65355]
[1641221264715,4.48518828,3824.8,3824.0,0.65355]
[1641221264914,0.3,3824.7,3824.0,0.65355]
[1641221265113,1.0,3825.0,3824.1,1.34997025]
[1641221265414,0.01023162,3824.9,3824.1,1.34997025]
[1641221265613,0.01023162,3824.9,3824.0,0.95355]
[1641221265814,0.0096632,3824.8,3824.0,0.65355]
[1641221266018,0.0096632,3824.8,3824.1,0.3]
[1641221266214,0.00909478,3824.7,3824.0,0.95355]
[1641221266614,0.3,3825.0,3824.0,0.65355]
[1641221266615,0.00852635,3824.6,3824.0,0.65355]
[1641221267047,0.00795793,3824.5,3824.0,0.65355]
[1641221267450,0.00738951,3824.4,3824.0,0.95355]
[1641221267648,0.00738951,3824.4,3824.0,0.65355]
[1641221267851,0.00682108,3824.3,3823.9,2.52366301]
[1641221268051,0.00682108,3824.3,3824.1,0.00124578]
[1641221268255,0.00625266,3824.2,3824.1,0.00124578]
[1641221268657,0.01193689,3824.2,3824.1,0.00124578]
[1641221270054,2.89415724,3824.2,3824.1,0.14927527]
[1641221270719,0.01193689,3824.2,3824.1,0.14927527]
[1641221271312,2.89415724,3824.2,3824.1,0.00124578]
[1641221271508,3.19415724,3824.2,3824.1,0.00124578]
[1641221272109,2.89415724,3824.2,3824.1,0.00124578]
[1641221272508,3.19415724,3824.2,3824.1,0.00124578]
[1641221272914,6.14391866,3824.2,3824.1,0.00124578]
[1641221273115,7.81331866,3824.2,3824.1,0.00124578]
[1641221273314,8.81331866,3824.2,3824.1,0.00124578]
[1641221273512,12.36355724,3824.2,3824.1,0.00124578]
[1641221273712,12.36355724,3824.2,3824.0,0.14802949]
[1641221273713,8.5,3824.1,3824.0,0.14802949]
[1641221273916,2.70333138,3824.1,3824.0,0.14802949]
[1641221274113,0.65399,3824.0,3823.3,1.31350638]
[1641221274347,0.6539974,3823.7,3823.1,0.05986445]
[1641221274546,0.68787193,3823.7,3823.1,0.05986445]
[1641221274750,0.00284212,3823.6,3823.1,0.71378445]
[1641221275249,0.00284212,3823.6,3823.2,0.14806627]
[1641221275250,1.77679529,3823.3,3823.2,0.14806627]
[1641221275449,1.77679529,3823.3,3823.2,4.69806627]
[1641221275649,1.77793214,3823.3,3823.2,0.14806627]
[1641221275850,2.8833572,3823.3,3823.2,0.14806627]
[1641221276754,0.00113685,3823.3,3823.2,0.14806627]
[1641221277353,2.70113685,3823.3,3823.2,0.14806627]
[1641221277654,1.9621307,3823.2,3822.8,0.14806627]
[1641221277853,1.36294444,3823.1,3822.8,0.14806627]
[1641221278096,1.36294444,3823.1,3822.9,0.00113685]
[1641221278097,2.72712761,3823.0,3822.9,0.00113685]
[1641221278308,0.3,3823.0,3822.9,0.00113685]
[1641221278502,0.3,3823.0,3822.9,0.00239806]
[1641221278899,1.91254444,3823.1,3822.9,0.00239806]
[1641221279107,1.77679529,3823.0,3822.9,0.00239806]
[1641221279303,4.47526043,3823.0,3822.9,0.00239806]
[1641221279503,1.77679529,3823.0,3822.9,0.00239806]